fUST/lending_fUST_20240110
["ID","MTS","AMOUNT","RATE_DAILY","PERIOD"]
[310923795,1704821449238,-500.0,0.0003589,2]
[310923796,1704821449248,-500.0,0.0003589,2]
[310923797,1704821449257,-500.0,0.0003589,2]
[310923798,1704821449267,-500.0,0.0003589,2]
[310923799,1704821449276,-500.0,0.0003589,2]
[310923800,1704821449286,-500.0,0.0003589,2]
[310923801,1704821449295,-500.0,0.0003589,2]
[310923802,1704821449304,-500.0039697,0.0003589,2]
[310923803,1704821449313,-207.33219449,0.0003589,2]
[310923804,1704821449322,-3915.57,0.0003589,2]
[310923805,1704821449332,-695.62,0.0003589,2]
[310923806,1704821449341,-500.0,0.0003589,2]
[310923807,1704821449350,-210.15599459,0.0003589,2]
[310923808,1704821449359,-500.0,0.0003589,2]
[310923809,1704821449369,-500.0,0.0003589,2]
[310923810,1704821449378,-1610.26,0.0003589,2]
[310923811,1704821449388,-500.0,0.0003589,2]
[310923812,1704821449397,-500.0,0.0003589,2]
[310923813,1704821449407,-2404.57,0.0003589,2]
[310923814,1704821449416,-500.0,0.0003589,2]
[310923815,1704821449426,-500.0,0.0003589,2]
[310923816,1704821449437,-500.0,0.0003589,2]
[310923817,1704821449446,-500.0,0.0003589,2]
[310923818,1704821449455,-500.0,0.0003589,2]
[310923819,1704821449465,-504.17246542,0.0003589,2]
[310923820,1704821449474,-500.0,0.0003589,2]
[310923821,1704821449483,-500.0,0.0003589,2]
[310923822,1704821449492,-500.0,0.0003589,2]
[310923823,1704821449501,-500.0,0.0003589,2]
[310923824,1704821449510,-500.0,0.0003589,2]
[310923825,1704821449520,-500.0,0.0003589,2]
[310923826,1704821449529,-1047.0,0.0003589,2]
[310923827,1704821449539,-500.0,0.0003589,2]
[310923828,1704821449548,-268.25266853,0.0003589,2]
[310923829,1704821449558,-621.3,0.0003589,2]
[310923830,1704821449567,-500.93,0.0003589,2]
[310923831,1704821449577,-517.48025698,0.0003589,2]
[310923832,1704821449586,-500.0,0.0003589,2]
[310923833,1704821449596,-500.0,0.0003589,2]
[310923834,1704821449605,-500.0,0.0003589,2]
[310923835,1704821449614,-500.0,0.0003589,2]
[310923836,1704821449623,-1000.0,0.0003589,2]
[310923837,1704821449632,-500.0,0.0003589,2]
[310923838,1704821449642,-580.61,0.0003589,2]
[310923839,1704821449651,-500.0,0.0003589,2]
[310923840,1704821449663,-500.0,0.0003589,2]
[310923841,1704821449673,-511.59350189,0.0003589,2]
[310923842,1704821449685,-506.88634979,0.0003589,2]
[310923843,1704821449694,-516.51757613,0.0003589,2]
[310923844,1704821449704,-501.94083797,0.0003589,2]
[310923845,1704821449713,-500.0,0.0003589,2]
[310923846,1704821449722,-500.0,0.0003589,2]
[310923847,1704821449731,-182.06893875,0.0003589,2]
[310923848,1704821449740,-567.32387945,0.0003589,2]
[310923849,1704821449749,-500.0,0.0003589,2]
[310923850,1704821449758,-935.62,0.0003589,2]
[310923851,1704821449768,-500.0,0.0003589,2]
[310923852,1704821449778,-500.78632076,0.0003589,2]
[310923853,1704821449787,-500.0,0.0003589,2]
[310923854,1704821449797,-500.0,0.0003589,2]
[310923855,1704821449807,-400.0,0.0003589,2]
[310923856,1704821449816,-567.99462303,0.0003589,2]
[310923857,1704821449826,-500.0,0.0003589,2]
[310923858,1704821449835,-215.42859924,0.0003589,2]
[310923859,1704821449844,-500.0,0.0003589,2]
[310923860,1704821449856,-500.0,0.0003589,2]
[310923861,1704821449865,-563.62061951,0.0003589,2]
[310923862,1704821449874,-520.82,0.0003589,2]
[310923863,1704821449883,-500.0,0.0003589,2]
[310923864,1704821449892,-500.0,0.0003589,2]
[310923865,1704821449902,-500.0,0.0003589,2]
[310923866,1704821449914,-500.0,0.0003589,2]
[310923867,1704821449925,-500.0,0.0003589,2]
[310923868,1704821449934,-500.0,0.0003589,2]
[310923869,1704821449943,-500.0,0.0003589,2]
[310923870,1704821449952,-500.0,0.0003589,2]
[310923871,1704821449962,-500.0,0.0003589,2]
[310923872,1704821449971,-500.0,0.0003589,2]
[310923873,1704821449980,-2696.13,0.0003589,2]
[310923874,1704821449990,-500.0,0.0003589,2]
[310923875,1704821450000,-500.0,0.0003589,2]
[310923876,1704821450009,-500.0,0.0003589,2]
[310923877,1704821450018,-626.10530072,0.0003589,2]
[310923878,1704821450027,-578.75542968,0.0003589,2]
[310923879,1704821450036,-500.0,0.0003589,2]
[310923880,1704821450046,-523.96387343,0.0003589,2]
[310923881,1704821450055,-500.0,0.0003589,2]
[310923882,1704821450064,-500.0,0.0003589,2]
[310923883,1704821450074,-500.0,0.0003589,2]
[310923884,1704821450083,-878.59,0.0003589,2]
[310923885,1704821450093,-500.0,0.0003589,2]
[310923886,1704821450102,-433.66898738,0.0003589,2]
[310923887,1704821450111,-743.88,0.0003589,2]
[310923888,1704821450121,-500.0,0.0003589,2]
[310923889,1704821450130,-500.0,0.0003589,2]
[310923890,1704821450139,-2980.19,0.0003589,2]
[310923891,1704821450148,-500.0,0.0003589,2]
[310923892,1704821450157,-500.0,0.0003589,2]
[310923893,1704821450166,-500.0,0.0003589,2]
[310923894,1704821450176,-532.93123084,0.0003589,2]
[310923895,1704821450185,-1855.24,0.0003589,2]
[310923896,1704821450194,-500.0,0.0003589,2]
[310923897,1704821450203,-500.0,0.0003589,2]
[310923898,1704821450213,-500.0,0.0003589,2]
[310923899,1704821450222,-500.0,0.0003589,2]
[310923900,1704821450231,-500.0,0.0003589,2]
[310923901,1704821450318,-500.0,0.0003589,2]
[310923902,1704821450337,-500.0,0.0003589,2]
[310923903,1704821450346,-500.0,0.0003589,2]
[310923904,1704821450355,-500.0,0.0003589,2]
[310923905,1704821450365,-500.0,0.0003589,2]
[310923906,1704821450375,-500.0,0.0003589,2]
[310923907,1704821450384,-535.05600543,0.0003589,2]
[310923908,1704821450394,-500.0,0.0003589,2]
[310923909,1704821450403,-500.0,0.0003589,2]
[310923910,1704821450414,-1851.96,0.0003589,2]
[310923911,1704821450423,-506.60874421,0.0003589,2]
[310923912,1704821450433,-1669.17,0.0003589,2]
[310923913,1704821450443,-625.84,0.0003589,2]
[310923914,1704821450452,-500.0,0.0003589,2]
[310923915,1704821450461,-500.0,0.0003589,2]
[310923916,1704821450471,-402.66767791,0.0003589,2]
[310923917,1704821450480,-193.63327634,0.0003589,2]
[310923918,1704821450489,-500.0,0.0003589,2]
[310923919,1704821450499,-2530.6,0.0003589,2]
[310923920,1704821450508,-150.41072782,0.0003589,2]
[310923921,1704821450518,-524.91,0.0003589,2]
[310923922,1704821450527,-505.56430784,0.0003589,2]
[310923923,1704821450536,-1000.0,0.0003589,2]
[310923924,1704821450546,-501.00292591,0.0003589,2]
[310923925,1704821450555,-500.0,0.0003589,2]
[310923926,1704821450568,-500.0,0.0003589,2]
[310923927,1704821450578,-500.0,0.0003589,2]
[310923928,1704821450587,-636.68,0.0003589,2]
[310923929,1704821450597,-1445.16,0.0003589,2]
[310923930,1704821450606,-2029.73,0.0003589,2]
[310923931,1704821450615,-500.0,0.0003589,2]
[310923932,1704821450625,-500.0,0.0003589,2]
[310923933,1704821450634,-500.0,0.0003589,2]
[310923934,1704821450644,-4006.42,0.0003589,2]
[310923935,1704821450653,-1488.9,0.0003589,2]
[310923936,1704821450664,-8793.55,0.0003589,2]
[310923937,1704821450675,-500.0,0.0003589,2]
[310923938,1704821450684,-500.0,0.0003589,2]
[310923939,1704821450693,-500.0,0.0003589,2]
[310923940,1704821450703,-500.0,0.0003589,2]
[310923941,1704821450713,-500.0,0.0003589,2]
[310923942,1704821450721,-5912.92,0.0003589,2]
[310923943,1704821450731,-1303.44,0.0003589,2]
[310923944,1704821450740,-362.47033602,0.0003589,2]
[310923945,1704821450749,-49739.82,0.0003589,2]
[310923946,1704821450759,-18762.34,0.0003589,2]
[310923947,1704821450768,-500.0,0.0003589,2]
[310923948,1704821450778,-211.36391079,0.0003589,2]
[310923949,1704821450787,-722.61,0.0003589,2]
[310923950,1704821450797,-8755.63,0.0003589,2]
[310923951,1704821450806,-500.0,0.0003589,2]
[310923952,1704821450815,-1888.24,0.0003589,2]
[310923953,1704821450824,-505.32809536,0.0003589,2]
[310923954,1704821450834,-544.39,0.0003589,2]
[310923955,1704821450843,-6056.22,0.0003589,2]
[310923956,1704821450853,-506.88833069,0.0003589,2]
[310923957,1704821450862,-519.22,0.0003589,2]
[310923958,1704821450872,-500.0,0.0003589,2]
[310923959,1704821450882,-500.0,0.0003589,2]
[310923960,1704821450891,-500.0,0.0003589,2]
[310923961,1704821450901,-500.0,0.0003589,2]
[310923962,1704821450911,-2091.64,0.0003589,2]
[310923963,1704821450921,-508.52,0.0003589,2]
[310923964,1704821450930,-500.0,0.0003589,2]
[310923965,1704821450940,-500.0,0.0003589,2]
[310923966,1704821450950,-500.0,0.0003589,2]
[310923967,1704821450959,-500.0,0.0003589,2]
[310923968,1704821450969,-500.0,0.0003589,2]
[310923969,1704821450980,-1358.42,0.0003589,2]
[310923970,1704821450990,-517.60631347,0.0003589,2]
[310923971,1704821451000,-500.0,0.0003589,2]
[310923972,1704821451011,-500.0,0.0003589,2]
[310923973,1704821451020,-500.0,0.0003589,2]
[310923974,1704821451030,-500.0,0.0003589,2]
[310923975,1704821451041,-500.0,0.0003589,2]
[310923976,1704821451050,-500.0,0.0003589,2]
[310923977,1704821451060,-500.0,0.0003589,2]
[310923978,1704821451070,-370.64177687,0.0003589,2]
[310923979,1704821451079,-500.0,0.0003589,2]
[310923980,1704821451088,-500.0,0.0003589,2]
[310923981,1704821451097,-503.12749455,0.0003589,2]
[310923982,1704821451107,-3985.81,0.0003589,2]
[310923983,1704821451116,-500.0,0.0003589,2]
[310923984,1704821451126,-500.0,0.0003589,2]
[310923985,1704821451135,-500.0,0.0003589,2]
[310923986,1704821451144,-4392.41,0.0003589,2]
[310923987,1704821451153,-500.0,0.0003589,2]
[310923988,1704821451164,-953.59,0.0003589,2]
[310923989,1704821451173,-500.0,0.0003589,2]
[310923990,1704821451183,-500.0,0.0003589,5]
[310923991,1704821451192,-500.0,0.0003589,2]
[310923992,1704821451201,-500.0,0.0003589,2]
[310923993,1704821451211,-500.0,0.0003589,2]
[310923994,1704821451221,-500.0,0.0003589,2]
[310923995,1704821451231,-500.0,0.0003589,2]
[310923996,1704821451240,-576.07,0.0003589,2]
[310923997,1704821451250,-2003.49,0.0003589,2]
[310923998,1704821451259,-503.7768482,0.0003589,2]
[310923999,1704821451270,-1437.94,0.0003589,2]
[310924000,1704821451279,-2647.53,0.0003589,2]
[310924001,1704821451290,-500.0,0.0003589,2]
[310924002,1704821451299,-500.0,0.0003589,2]
[310924003,1704821451309,-500.0,0.0003589,2]
[310924004,1704821451319,-1739.475306,0.0003589,2]
[310924005,1704821451329,-1739.475306,0.0003589,2]
[310924006,1704821451339,-210.640692,0.0003589,2]
[310924007,1704821451348,-210.640692,0.0003589,2]
[310924008,1704821451357,-327.373269,0.0003589,2]
[310924009,1704821451366,-327.373269,0.0003589,2]
[310924010,1704821451376,-7410.0,0.0003598,4]
[310924011,1704821451385,-154.41457915,0.00035986,7]
[310924012,1704821451395,-429.28381485,0.0003599,2]
[310924013,1704821451405,-152.3890024,0.00035995,7]
[310924014,1704821451416,-19739.2779926,0.00035998,3]
[310924015,1704821451426,-999.99999912,0.00035998,2]
[310924016,1704821451435,-13630.35097578,0.00036,2]
[310924017,1704821451444,-534.30256127,0.00036,30]
[310924018,1704821451454,-230.25509034,0.00036,4]
[310924019,1704821451464,-8112.98729221,0.00036,2]
[310924020,1704821451473,-171.0,0.00036,2]
[310924021,1704821451482,-500.0,0.00036,7]
[310924022,1704821451492,-955.0,0.00036,7]
[310924023,1704821451501,-327.373269,0.00036,2]
[310924024,1704821451510,-327.373269,0.00036,2]
[310924025,1704821451520,-166.87710603,0.00036054,4]
[310924026,1704821451529,-2000.0,0.00036082,2]
[310924027,1704821451538,-250.498226,0.000361,15]
[310924028,1704821451548,-5000.0,0.00036164,7]
[310924029,1704821451557,-6136.58700697,0.00036164,7]
[310924030,1704821451566,-295.84841273,0.00036164,7]
[310924031,1704821451576,-500.0,0.00036164,2]
[310924032,1704821451585,-548.35574145,0.00036164,2]
[310924033,1704821451594,-500.0,0.00036164,2]
[310924034,1704821451604,-500.0,0.00036164,2]
[310924035,1704821451613,-4448.7026887,0.00036164,7]
[310924036,1704821451622,-500.0,0.00036164,2]
[310924037,1704821451632,-500.0,0.00036164,2]
[310924038,1704821451642,-500.0,0.00036164,2]
[310924039,1704821451651,-500.0,0.00036164,2]
[310924040,1704821451661,-500.0,0.00036164,2]
[310924041,1704821451671,-500.0,0.00036164,2]
[310924042,1704821451681,-503.80503985,0.00036164,2]
[310924043,1704821451690,-837.95,0.00036164,2]
[310924044,1704821451700,-500.0,0.00036164,2]
[310924045,1704821451709,-500.0,0.00036164,2]
[310924046,1704821451718,-500.0,0.00036164,2]
[310924047,1704821451727,-523.74,0.00036164,2]
[310924048,1704821451736,-500.0,0.00036164,2]
[310924049,1704821451746,-453.87475052,0.00036164,2]
[310924050,1704821451755,-500.0,0.00036164,2]
[310924051,1704821451765,-500.0,0.00036164,2]
[310924052,1704821451774,-546.15,0.00036164,2]
[310924053,1704821451783,-500.0,0.00036164,2]
[310924054,1704821451793,-500.0,0.00036164,2]
[310924055,1704821451802,-500.0,0.00036164,2]
[310924056,1704821451812,-500.0,0.00036164,2]
[310924057,1704821451821,-613.2,0.00036164,2]
[310924058,1704821451831,-444.79503558,0.00036164,2]
[310924059,1704821451841,-500.0,0.00036164,2]
[310924060,1704821451850,-502.58366231,0.00036164,2]
[310924061,1704821451859,-500.0,0.00036164,2]
[310924062,1704821451869,-500.0,0.00036164,2]
[310924063,1704821451878,-500.0,0.00036164,2]
[310924064,1704821451887,-600.0,0.00036164,2]
[310924065,1704821451901,-500.0,0.00036164,2]
[310924066,1704821451914,-500.0,0.00036164,2]
[310924067,1704821451926,-500.0,0.00036164,2]
[310924068,1704821451936,-500.0,0.00036164,2]
[310924069,1704821451947,-500.0,0.00036164,2]
[310924070,1704821451957,-229.12947343,0.00036164,7]
[310924071,1704821451967,-500.0,0.00036164,2]
[310924072,1704821451977,-500.0,0.00036164,2]
[310924073,1704821451986,-500.0,0.00036164,2]
[310924074,1704821451996,-500.0,0.00036164,2]
[310924075,1704821452006,-500.0,0.00036164,2]
[310924076,1704821452015,-500.0,0.00036164,2]
[310924077,1704821452025,-500.0,0.00036164,2]
[310924078,1704821452033,-500.0,0.00036164,2]
[310924079,1704821452043,-500.0,0.00036164,2]
[310924080,1704821452052,-500.0,0.00036164,2]
[310924081,1704821452061,-500.0,0.00036164,2]
[310924082,1704821452070,-3915.57,0.00036164,2]
[310924083,1704821452079,-695.62,0.00036164,2]
[310924084,1704821452089,-500.0,0.00036164,2]
[310924085,1704821452098,-500.0,0.00036164,2]
[310924086,1704821452108,-500.0,0.00036164,2]
[310924087,1704821452117,-1610.26,0.00036164,2]
[310924088,1704821452126,-500.0,0.00036164,2]
[310924089,1704821452135,-357.58884199,0.00036164,2]
[310924090,1704821452144,-2404.57,0.00036164,2]
[310924091,1704821452153,-500.0,0.00036164,2]
[310924092,1704821452246,-500.0,0.00036164,2]
[310924093,1704821452255,-500.0,0.00036164,2]
[310924094,1704821452264,-500.0,0.00036164,2]
[310924095,1704821452273,-500.0,0.00036164,2]
[310924096,1704821452283,-500.0,0.00036164,2]
[310924097,1704821452292,-500.0,0.00036164,2]
[310924098,1704821452301,-500.0,0.00036164,2]
[310924099,1704821452311,-500.0,0.00036164,2]
[310924100,1704821452320,-1047.0,0.00036164,2]
[310924101,1704821452329,-500.0,0.00036164,2]
[310924102,1704821452338,-621.3,0.00036164,2]
[310924103,1704821452347,-500.93,0.00036164,2]
[310924104,1704821452356,-500.0,0.00036164,2]
[310924105,1704821452366,-500.0,0.00036164,2]
[310924106,1704821452375,-1000.0,0.00036164,2]
[310924107,1704821452384,-500.0,0.00036164,2]
[310924108,1704821452393,-580.61,0.00036164,2]
[310924109,1704821452402,-500.0,0.00036164,2]
[310924110,1704821452414,-500.0,0.00036164,2]
[310924111,1704821452423,-500.0,0.00036164,2]
[310924112,1704821452432,-466.66908188,0.00036164,2]
[310924113,1704821452441,-935.62,0.00036164,2]
[310924114,1704821452450,-532.42179893,0.00036164,2]
[310924115,1704821452459,-500.0,0.00036164,2]
[310924116,1704821452469,-5000.0,0.00036164,7]
[310924117,1704821452478,-500.0,0.00036164,2]
[310924118,1704821452488,-500.0,0.00036164,2]
[310924119,1704821452497,-500.0,0.00036164,2]
[310924120,1704821452507,-520.82,0.00036164,2]
[310924121,1704821452516,-500.0,0.00036164,2]
[310924122,1704821452525,-500.0,0.00036164,2]
[310924123,1704821452534,-500.0,0.00036164,2]
[310924124,1704821452544,-1396.41707989,0.00036164,10]
[310924125,1704821452553,-500.0,0.00036164,2]
[310924126,1704821452562,-500.0,0.00036164,2]
[310924127,1704821452572,-500.0,0.00036164,2]
[310924128,1704821452582,-500.0,0.00036164,2]
[310924129,1704821452591,-500.0,0.00036164,2]
[310924130,1704821452602,-500.0,0.00036164,2]
[310924131,1704821452611,-2696.13,0.00036164,2]
[310924132,1704821452621,-500.0,0.00036164,2]
[310924133,1704821452630,-500.0,0.00036164,2]
[310924134,1704821452639,-500.0,0.00036164,2]
[310924135,1704821452648,-513.82641678,0.00036164,2]
[310924136,1704821452659,-500.0,0.00036164,2]
[310924137,1704821452668,-500.0,0.00036164,2]
[310924138,1704821452677,-500.0,0.00036164,2]
[310924139,1704821452686,-878.59,0.00036164,2]
[310924140,1704821452694,-500.0,0.00036164,2]
[310924141,1704821452703,-743.88,0.00036164,2]
[310924142,1704821452712,-500.0,0.00036164,2]
[310924143,1704821452721,-500.0,0.00036164,2]
[310924144,1704821452731,-2980.19,0.00036164,2]
[310924145,1704821452739,-500.0,0.00036164,2]
[310924146,1704821452749,-500.0,0.00036164,2]
[310924147,1704821452757,-500.0,0.00036164,2]
[310924148,1704821452766,-1855.24,0.00036164,2]
[310924149,1704821452775,-530.61899868,0.00036164,2]
[310924150,1704821452784,-500.0,0.00036164,2]
[310924151,1704821452794,-500.0,0.00036164,2]
[310924152,1704821452803,-475.49395368,0.00036164,2]
[310924153,1704821452812,-500.0,0.00036164,2]
[310924154,1704821452822,-500.0,0.00036164,2]
[310924155,1704821452831,-500.0,0.00036164,2]
[310924156,1704821452841,-500.0,0.00036164,2]
[310924157,1704821452850,-500.0,0.00036164,2]
[310924158,1704821452859,-500.0,0.00036164,2]
[310924159,1704821452868,-500.0,0.00036164,2]
[310924160,1704821452878,-522.35965468,0.00036164,2]
[310924161,1704821452887,-500.0,0.00036164,2]
[310924162,1704821452896,-1851.96,0.00036164,2]
[310924163,1704821452905,-1669.17,0.00036164,2]
[310924164,1704821452916,-625.84,0.00036164,2]
[310924165,1704821452925,-500.0,0.00036164,2]
[310924166,1704821452935,-279.67823767,0.00036164,2]
[310924167,1704821452944,-552.78766617,0.00036164,2]
[310924168,1704821452953,-2530.6,0.00036164,2]
[310924169,1704821452963,-524.91,0.00036164,2]
[310924170,1704821452972,-504.62093577,0.00036164,2]
[310924171,1704821452981,-500.0,0.00036164,2]
[310924172,1704821452990,-500.0,0.00036164,2]
[310924173,1704821452999,-636.68,0.00036164,2]
[310924174,1704821453009,-1445.16,0.00036164,2]
[310924175,1704821453018,-2029.73,0.00036164,2]
[310924176,1704821453027,-500.0,0.00036164,2]
[310924177,1704821453036,-500.0,0.00036164,2]
[310924178,1704821453045,-500.0,0.00036164,2]
[310924179,1704821453055,-229.3898169,0.00036164,10]
[310924180,1704821453064,-4006.42,0.00036164,2]
[310924181,1704821453073,-1488.9,0.00036164,2]
[310924182,1704821453082,-8793.55,0.00036164,2]
[310924183,1704821453091,-500.0,0.00036164,2]
[310924184,1704821453100,-500.0,0.00036164,2]
[310924185,1704821453109,-500.0,0.00036164,2]
[310924186,1704821453118,-500.0,0.00036164,2]
[310924187,1704821453127,-500.0,0.00036164,2]
[310924188,1704821453137,-5912.92,0.00036164,2]
[310924189,1704821453147,-1303.44,0.00036164,2]
[310924190,1704821453155,-41843.15118087,0.00036164,2]
[310924191,1704821453315,-7896.66881913,0.00036164,2]
[310924192,1704821453325,-2306.18070375,0.00036164,2]
[310924193,1704821453338,-16456.15929625,0.00036164,2]
[310924194,1704821453348,-500.0,0.00036164,2]
[310924195,1704821453359,-722.61,0.00036164,2]
[310924196,1704821453368,-8755.63,0.00036164,2]
[310924197,1704821453377,-500.0,0.00036164,2]
[310924198,1704821453387,-1888.24,0.00036164,2]
[310924199,1704821453396,-544.39,0.00036164,2]
[310924200,1704821453406,-6056.22,0.00036164,2]
[310924201,1704821453418,-519.22,0.00036164,2]
[310924202,1704821453427,-500.0,0.00036164,2]
[310924203,1704821453436,-500.0,0.00036164,2]
[310924204,1704821453445,-500.0,0.00036164,2]
[310924205,1704821453454,-500.0,0.00036164,2]
[310924206,1704821453463,-2091.64,0.00036164,2]
[310924207,1704821453473,-508.52,0.00036164,2]
[310924208,1704821453482,-500.0,0.00036164,2]
[310924209,1704821453491,-500.0,0.00036164,2]
[310924210,1704821453500,-500.0,0.00036164,2]
[310924211,1704821453509,-500.0,0.00036164,2]
[310924212,1704821453518,-500.0,0.00036164,2]
[310924213,1704821453527,-1358.42,0.00036164,2]
[310924214,1704821453536,-500.0,0.00036164,2]
[310924215,1704821453546,-500.0,0.00036164,2]
[310924216,1704821453555,-500.0,0.00036164,2]
[310924217,1704821453564,-500.0,0.00036164,2]
[310924218,1704821453573,-500.0,0.00036164,2]
[310924219,1704821453582,-500.0,0.00036164,2]
[310924220,1704821453592,-500.0,0.00036164,2]
[310924221,1704821453601,-500.0,0.00036164,2]
[310924222,1704821453610,-540.34902769,0.00036164,2]
[310924223,1704821453619,-3985.81,0.00036164,2]
[310924224,1704821453629,-550.68178746,0.00036164,2]
[310924225,1704821453638,-500.0,0.00036164,2]
[310924226,1704821453647,-500.0,0.00036164,2]
[310924227,1704821453656,-581.6048757,0.00036164,7]
[310924228,1704821453668,-4392.41,0.00036164,2]
[310924229,1704821453678,-500.0,0.00036164,2]
[310924230,1704821453687,-953.59,0.00036164,2]
[310924231,1704821453696,-500.0,0.00036164,2]
[310924232,1704821453707,-500.0,0.00036164,5]
[310924233,1704821453716,-500.0,0.00036164,2]
[310924234,1704821453725,-500.0,0.00036164,2]
[310924235,1704821453817,-501.69840963,0.00036164,2]
[310924236,1704821453827,-500.0,0.00036164,2]
[310924237,1704821453836,-500.0,0.00036164,2]
[310924238,1704821453845,-576.07,0.00036164,2]
[310924239,1704821453855,-2003.49,0.00036164,2]
[310924240,1704821453864,-1437.94,0.00036164,2]
[310924241,1704821453873,-2647.53,0.00036164,2]
[310924242,1704821453884,-500.0,0.00036164,2]
[310924243,1704821453894,-500.0,0.00036164,2]
[310924244,1704821453903,-500.0,0.00036164,2]
[310924245,1704821453916,-1739.475306,0.00036164,2]
[310924246,1704821453925,-1739.475306,0.00036164,2]
[310924247,1704821453934,-210.640692,0.00036164,2]
[310924248,1704821453943,-210.640692,0.00036164,2]
[310924249,1704821453953,-327.373269,0.00036164,2]
[310924250,1704821453963,-327.373269,0.00036164,2]
[310924251,1704821453972,-248.4011704,0.000363,3]
[310924252,1704821453982,-1207.15499151,0.00036355,30]
[310924253,1704821453993,-171.0,0.00036383,2]
[310924254,1704821454003,-384.93679232,0.00036438,20]
[310924255,1704821454012,-500.0,0.00036438,2]
[310924256,1704821454021,-500.0,0.00036438,2]
[310924257,1704821454031,-500.0,0.00036438,2]
[310924258,1704821454040,-500.0,0.00036438,2]
[310924259,1704821454050,-500.0,0.00036438,2]
[310924260,1704821454059,-500.0,0.00036438,2]
[310924261,1704821454068,-500.0,0.00036438,2]
[310924262,1704821454077,-500.0,0.00036438,2]
[310924263,1704821454086,-837.95,0.00036438,2]
[310924264,1704821454096,-500.0,0.00036438,2]
[310924265,1704821454107,-500.0,0.00036438,2]
[310924266,1704821454116,-500.0,0.00036438,2]
[310924267,1704821454125,-523.74,0.00036438,2]
[310924268,1704821454134,-500.0,0.00036438,2]
[310924269,1704821454143,-304.69048824,0.00036438,2]
[310924270,1704821454153,-500.0,0.00036438,2]
[310924271,1704821454164,-546.15,0.00036438,2]
[310924272,1704821454174,-500.0,0.00036438,2]
[310924273,1704821454183,-500.0,0.00036438,2]
[310924274,1704821454192,-544.58567648,0.00036438,2]
[310924275,1704821454202,-500.0,0.00036438,2]
[310924276,1704821454211,-613.2,0.00036438,2]
[310924277,1704821454220,-500.0,0.00036438,2]
[310924278,1704821454230,-393.79686522,0.00036438,2]
[310924279,1704821454239,-500.00003679,0.00036438,2]
[310924280,1704821454248,-500.0,0.00036438,2]
[310924281,1704821454257,-600.0,0.00036438,2]
[310924282,1704821454267,-500.0,0.00036438,2]
[310924283,1704821454276,-500.0,0.00036438,2]
[310924284,1704821454285,-500.0,0.00036438,2]
[310924285,1704821454294,-500.0,0.00036438,2]
[310924286,1704821454304,-500.0,0.00036438,2]
[310924287,1704821454313,-500.0,0.00036438,2]
[310924288,1704821454323,-500.0,0.00036438,2]
[310924289,1704821454332,-500.0,0.00036438,2]
[310924290,1704821454341,-500.0,0.00036438,2]
[310924291,1704821454350,-500.0,0.00036438,2]
[310924292,1704821454359,-500.0,0.00036438,2]
[310924293,1704821454368,-500.0,0.00036438,2]
[310924294,1704821454378,-500.0,0.00036438,2]